DepartmentFamily,Entity,Date,ExpenseType,ExpenseArea,Supplier,Transaction Number,Amount,Description,Supplier Type,VATRegistrationNumber
BEIS,The Insolvency Service,02/11/2021,Other Costs,Official Receiver Services,Royal Mail (Redirection),300033132,1296.00,Finance - OR Case Disbursements,Large,
BEIS,The Insolvency Service,02/11/2021,ICT,Digital Technology Services,Daisy Corporate Services Trading Limited,300033120,17488.21,IT - Run,Large,722471355
BEIS,The Insolvency Service,02/11/2021,Staff Costs - Non-Perms,Finance & Commercial,ALEXANDER MANN SOLUTIONS,300032990,51983.08,Agency Staff & Contractor Costs,Large,7444926120
BEIS,The Insolvency Service,02/11/2021,"Printing, Stationary & Postage",Official Receiver Services,John Pye & Sons Limited,300033059,636.00,Courier,SME,117777249
BEIS,The Insolvency Service,03/11/2021,Legal - Costs of Criminal Prosecutions and Advice,Investigations & Enforcement Services,Royal Mail (Response Services),300033163,944.40,Costs of Criminal Prosecutions and Advice,Large,243170002
BEIS,The Insolvency Service,03/11/2021,ICT,Digital Technology Services,Ukcloud Ltd,300033143,12912.44,IT - Run,SME,172647982
BEIS,The Insolvency Service,03/11/2021,Off-Site Storage,Official Receiver Services,Ukcloud Ltd,300033148,24795.50,Storage - OR,SME,172647982
BEIS,The Insolvency Service,03/11/2021,Legal - Costs of Criminal Prosecutions and Advice,Legal Services Division,Harris Cuffaro And Nichols Solicitors,300033058,1145.50,Costs of Criminal Prosecutions and Advice,SME,688634967
BEIS,The Insolvency Service,03/11/2021,HR,Business Service Division,Cragg Ross Dawson Ltd,300032993,570.00,Recruitment Costs,SME,289382407
BEIS,The Insolvency Service,03/11/2021,Staff Costs - Non-Perms,Projects,Red Snapper Recruitment,300033084,4050.00,Outside IR35 Non Perm Resource,SME,835435718
BEIS,The Insolvency Service,03/11/2021,Staff Costs - Non-Perms,Projects,Red Snapper Recruitment,300033085,4050.00,Outside IR35 Non Perm Resource,SME,835435718
BEIS,The Insolvency Service,03/11/2021,Staff Costs - Non-Perms,Projects,Red Snapper Recruitment,300033086,4050.00,Outside IR35 Non Perm Resource,SME,835435718
BEIS,The Insolvency Service,03/11/2021,Staff Costs - Non-Perms,Projects,Red Snapper Recruitment,300033087,4050.00,Outside IR35 Non Perm Resource,SME,835435718
BEIS,The Insolvency Service,03/11/2021,Staff Costs - Non-Perms,Projects,Red Snapper Recruitment,300033088,3300.00,Outside IR35 Non Perm Resource,SME,835435718
BEIS,The Insolvency Service,03/11/2021,Staff Costs - Non-Perms,Projects,Red Snapper Recruitment,300033089,3300.00,Outside IR35 Non Perm Resource,SME,835435718
BEIS,The Insolvency Service,03/11/2021,Staff Costs - Non-Perms,Projects,Red Snapper Recruitment,300033090,3300.00,Outside IR35 Non Perm Resource,SME,835435718
BEIS,The Insolvency Service,03/11/2021,Staff Costs - Non-Perms,Projects,Red Snapper Recruitment,300033091,3300.00,Outside IR35 Non Perm Resource,SME,835435718
BEIS,The Insolvency Service,03/11/2021,Staff Costs - Non-Perms,Projects,Red Snapper Recruitment,300033097,3300.00,Outside IR35 Non Perm Resource,SME,835435718
BEIS,The Insolvency Service,03/11/2021,Staff Costs - Non-Perms,Projects,Red Snapper Recruitment,300033101,4050.00,Outside IR35 Non Perm Resource,SME,835435718
BEIS,The Insolvency Service,03/11/2021,Staff Costs - Non-Perms,Business Service Division,Randstad Solutions Ltd,300033038,762.96,Agency Staff & Contractor Costs,Large,492435726
BEIS,The Insolvency Service,04/11/2021,Estates - Property,Finance & Commercial,HMRC (Office Space),300033216,28654.29,Rent,Large,888848141
BEIS,The Insolvency Service,04/11/2021,Estates - Property,Finance & Commercial,Jones Lang Lasalle (Amas Ltd) - (Rent & Property Costs),300033211,10584.00,Landlord Service Charge,Large,
BEIS,The Insolvency Service,04/11/2021,Off-Site Storage,Official Receiver Services,Iron Mountain (Uk) Ltd,300033177,2892.04,Storage - HQ,Large,607937516
BEIS,The Insolvency Service,04/11/2021,Training,Finance & Commercial,Cabinet Office,300033152,6100.00,Training,Large,888801080
BEIS,The Insolvency Service,04/11/2021,Estates - Property,Finance & Commercial,GPA (C/O Montagu Evans LLP),300033176,634.66,Property Maintenance - CS2,Large,
BEIS,The Insolvency Service,04/11/2021,ICT,Business Service Division,Syntec Ltd,300033165,625.49,IT - Run,SME,264618586
BEIS,The Insolvency Service,04/11/2021,ICT,Digital Technology Services,Insight Direct (UK) Ltd,300033199,853.50,IT - Run,Large,746075129
BEIS,The Insolvency Service,04/11/2021,ICT,Digital Technology Services,Insight Direct (UK) Ltd,300033200,2791.06,IT - Run,Large,746075129
BEIS,The Insolvency Service,04/11/2021,ICT,Digital Technology Services,Insight Direct (UK) Ltd,300033202,2398.81,IT - Run,Large,746075129
BEIS,The Insolvency Service,04/11/2021,ICT,Digital Technology Services,Insight Direct (UK) Ltd,300033204,628.50,IT - Run,Large,746075129
BEIS,The Insolvency Service,04/11/2021,Staff Costs - Perms,Finance & Commercial,Edenred,300033181,25000.00,Staff Costs - Perms,SME,
BEIS,The Insolvency Service,04/11/2021,ICT,Digital Technology Services,Netcompany UK Ltd,300033193,1947.00,IT - Transform,Large,171809009
BEIS,The Insolvency Service,04/11/2021,ICT,Projects,Netcompany UK Ltd,300033224,3894.00,IT - Transform,Large,171809009
BEIS,The Insolvency Service,04/11/2021,Off-Site Storage,Official Receiver Services,Purdie Worldwide,300033155,930.69,Storage - OR,Large,208569880
BEIS,The Insolvency Service,04/11/2021,Off-Site Storage,Official Receiver Services,Crown Records Management,300033147,933.88,Storage - OR,SME,902181658
BEIS,The Insolvency Service,04/11/2021,"Legal, Translation & Consultancy",Projects,Advanced 365 Limited,300033164,1062.50,Consultancy,Large,927547983
BEIS,The Insolvency Service,04/11/2021,ICT,Digital Technology Services,Advanced 365 Limited,300033167,1223.96,IT - Run,Large,927547983
BEIS,The Insolvency Service,04/11/2021,ICT,Digital Technology Services,Advanced 365 Limited,300033173,5627.93,IT - Run,Large,927547983
BEIS,The Insolvency Service,04/11/2021,ICT,Digital Technology Services,Advanced 365 Limited,300033179,7343.84,IT - Run,Large,927547983
BEIS,The Insolvency Service,04/11/2021,ICT,Digital Technology Services,Phoenix Software Limited,300031997,75985.16,IT - Run,SME,755349015
BEIS,The Insolvency Service,04/11/2021,ICT,Digital Technology Services,Phoenix Software Limited,300033213,42193.60,IT - Run,SME,755349015
BEIS,The Insolvency Service,04/11/2021,ICT,Digital Technology Services,Phoenix Software Limited,300033214,896425.68,IT - Run,SME,755349015
BEIS,The Insolvency Service,04/11/2021,Training,People & Capability,Health Assurred Limited,300033001,850.00,Training,SME,927524217
BEIS,The Insolvency Service,04/11/2021,Staff Costs - Non-Perms,Finance & Commercial,Spinwell Global Ltd,300033226,3282.00,Agency Staff & Contractor Costs,,257189569
BEIS,The Insolvency Service,04/11/2021,ICT,Digital Technology Services,Insight Direct (UK) Ltd,300033137,-2398.81,IT - Run,Large,746075129
BEIS,The Insolvency Service,04/11/2021,ICT,Digital Technology Services,Insight Direct (UK) Ltd,300033138,-2791.06,IT - Run,Large,746075129
BEIS,The Insolvency Service,05/11/2021,Estates - Property,Finance & Commercial,Jones Lang Lasalle (Amas Ltd) - (Rent & Property Costs),300033249,30957.17,Landlord Service Charge,Large,
BEIS,The Insolvency Service,05/11/2021,ICT,Digital Technology Services,Ibm Uk Ltd,300033117,1920.00,IT - Run,Large,107328000
BEIS,The Insolvency Service,05/11/2021,Staff Costs - Non-Perms,Finance & Commercial,Agilisys Ltd,300033042,13680.00,Agency Staff & Contractor Costs,Large,791711713
BEIS,The Insolvency Service,05/11/2021,Investigation & Enforcement,Investigations & Enforcement Services,Md5 Ltd,300033227,1524.47,Case Related Costs,SME,
BEIS,The Insolvency Service,05/11/2021,Investigation & Enforcement,Investigations & Enforcement Services,Md5 Ltd,300033233,1037.45,Case Related Costs,SME,
BEIS,The Insolvency Service,05/11/2021,Investigation & Enforcement,Investigations & Enforcement Services,Md5 Ltd,300033235,2602.31,Case Related Costs,SME,
BEIS,The Insolvency Service,05/11/2021,Legal - Costs of Criminal Prosecutions and Advice,Legal Services Division,New Park Court Chambers,300033192,769.50,Costs of Criminal Prosecutions and Advice,SME,157478863
BEIS,The Insolvency Service,05/11/2021,ICT,Digital Technology Services,Geoff Smith Associates Ltd,300033252,13800.00,IT - Run,SME,813047166
BEIS,The Insolvency Service,05/11/2021,Staff Costs - Non-Perms,Finance & Commercial,ALEXANDER MANN SOLUTIONS,300033172,67309.16,Agency Staff & Contractor Costs,Large,7444926120
BEIS,The Insolvency Service,05/11/2021,ICT,Digital Technology Services,Advanced 365 Limited,300033168,7440.00,IT - Run,Large,927547983
BEIS,The Insolvency Service,05/11/2021,ICT,Digital Technology Services,e2e-assure Ltd,300033142,18632.10,IT - Run,SME,173116233
BEIS,The Insolvency Service,05/11/2021,Other Costs,Official Receiver Services,Controlaccount PLC,300033256,2268.00,Customer Research and Accreditation,SME,945758964
BEIS,The Insolvency Service,05/11/2021,Other Costs,Official Receiver Services,Controlaccount PLC,300033266,642.00,Customer Research and Accreditation,SME,945758964
BEIS,The Insolvency Service,05/11/2021,Other Costs,Official Receiver Services,Controlaccount PLC,300033268,810.00,Customer Research and Accreditation,SME,945758964
BEIS,The Insolvency Service,05/11/2021,Other Costs,Official Receiver Services,Controlaccount PLC,300033273,1362.00,Customer Research and Accreditation,SME,945758964
BEIS,The Insolvency Service,05/11/2021,Other Costs,Official Receiver Services,Controlaccount PLC,300033279,1748.64,Customer Research and Accreditation,SME,945758964
BEIS,The Insolvency Service,05/11/2021,Other Costs,Official Receiver Services,Controlaccount PLC,300033283,4986.84,Customer Research and Accreditation,SME,945758964
BEIS,The Insolvency Service,05/11/2021,ICT,Investigations & Enforcement Services,Cellebrite UK Limited,300033212,6836.40,IT - Run,,187237479
BEIS,The Insolvency Service,05/11/2021,HR,People & Capability,Health Assurred Limited,300033201,597.30,Staff Welfare,SME,927524217
BEIS,The Insolvency Service,08/11/2021,Legal - Costs of Civil Litigation Disqualifications,Legal Services Division,Womble Bond Dickinson,300033414,6522.15,Costs of Civil Litigation Disqualifications,Large,123392627
BEIS,The Insolvency Service,08/11/2021,Legal - Costs of Recovering Civil Costs Awarded,Legal Services Division,Womble Bond Dickinson,300033416,2360.91,Recovery of Civil Proceedings Costs Awarded,Large,123392627
BEIS,The Insolvency Service,08/11/2021,Legal - Costs of Recovering Civil Costs Awarded,Legal Services Division,Howes Percival,300033380,9305.50,Recovery of Civil Proceedings Costs Awarded,Large,119523573
BEIS,The Insolvency Service,08/11/2021,Legal - Costs of Recovering Civil Costs Awarded,Legal Services Division,Howes Percival,300033380,586.00,Recovery of Civil Proceedings Costs Awarded,Large,119523573
BEIS,The Insolvency Service,08/11/2021,Legal - Costs of Civil Litigation Disqualifications,Legal Services Division,Howes Percival,300033381,7644.00,Costs of Civil Litigation Disqualifications,Large,119523573
BEIS,The Insolvency Service,08/11/2021,Legal - Outsourced Investigation,Investigations & Enforcement Services,Howes Percival,300033382,28366.00,Solicitors Investigations,Large,119523573
BEIS,The Insolvency Service,08/11/2021,Legal - Costs of Recovering Civil Costs Awarded,Legal Services Division,Shepherd & Wedderburn Ws,300033359,3981.15,Recovery of Civil Proceedings Costs Awarded,Large,125425142
BEIS,The Insolvency Service,08/11/2021,Legal - Costs of Recovering Civil Costs Awarded,Legal Services Division,Gowling Wragge Lawrence Graham  & Co,300033349,5475.30,Recovery of Civil Proceedings Costs Awarded,SME,858698838
BEIS,The Insolvency Service,08/11/2021,Legal - Costs of Civil Litigation Disqualifications,Legal Services Division,Gowling Wragge Lawrence Graham  & Co,300033351,36851.85,Costs of Civil Litigation Disqualifications,SME,858698838
BEIS,The Insolvency Service,08/11/2021,Legal - Costs of Civil Litigation Disqualifications,Legal Services Division,Gowling Wragge Lawrence Graham  & Co,300033351,582.00,Costs of Civil Litigation Disqualifications,SME,858698838
BEIS,The Insolvency Service,08/11/2021,Legal - Costs of Civil Litigation Winding Up,Legal Services Division,Gowling Wragge Lawrence Graham  & Co,300033378,4044.90,Costs of Civil Litigation Winding Up,SME,858698838
BEIS,The Insolvency Service,08/11/2021,Legal - Costs of Recovering Civil Costs Awarded,Legal Services Division,Burness Paull & Williamsons Solicitors,300033371,1807.15,Recovery of Civil Proceedings Costs Awarded,Large,216218532
BEIS,The Insolvency Service,08/11/2021,Legal - Outsourced Investigation,Investigations & Enforcement Services,Burness Paull & Williamsons Solicitors,300033375,3986.50,Solicitors Investigations,Large,216218532
BEIS,The Insolvency Service,08/11/2021,Legal - Costs of Civil Litigation Disqualifications,Legal Services Division,Burness Paull & Williamsons Solicitors,300033376,3487.00,Costs of Civil Litigation Disqualifications,Large,216218532
BEIS,The Insolvency Service,08/11/2021,Estates - Property,Finance & Commercial,Exeter City Council (Rates),300033288,4673.20,Rates,Public Sector,
BEIS,The Insolvency Service,08/11/2021,Legal - Costs of Recovering Civil Costs Awarded,Legal Services Division,Shepherd & Wedderburn Ws,300033357,573.57,Recovery of Civil Proceedings Costs Awarded,Large,890559386
BEIS,The Insolvency Service,08/11/2021,Legal - Costs of Recovering Civil Costs Awarded,Legal Services Division,Tlt Llp,300033364,1740.00,Recovery of Civil Proceedings Costs Awarded,Large,3574583240
BEIS,The Insolvency Service,08/11/2021,Legal - Costs of Civil Litigation Winding Up,Legal Services Division,Tlt Llp,300033367,953.50,Costs of Civil Litigation Winding Up,Large,3574583240
BEIS,The Insolvency Service,08/11/2021,Legal - Costs of Civil Litigation Winding Up,Legal Services Division,Tlt Llp,300033368,5339.53,Costs of Civil Litigation Winding Up,Large,3574583240
BEIS,The Insolvency Service,08/11/2021,Legal - Costs of Civil Litigation Winding Up,Legal Services Division,Tlt Llp,300033370,7552.60,Costs of Civil Litigation Winding Up,Large,3574583240
BEIS,The Insolvency Service,08/11/2021,Legal - Outsourced Investigation,Official Receiver Services,Pricewaterhouse Coopers LLP,300032991,19978.99,Solicitors Investigations,Large,243823957
BEIS,The Insolvency Service,08/11/2021,Staff Costs - Non-Perms,Finance & Commercial,SmartSourcing,300033356,10206.00,Outside IR35 Non Perm Resource,SME,788507869
BEIS,The Insolvency Service,08/11/2021,Staff Costs - Non-Perms,Finance & Commercial,SmartSourcing,300033360,11700.00,Outside IR35 Non Perm Resource,SME,788507869
BEIS,The Insolvency Service,08/11/2021,Staff Costs - Non-Perms,Finance & Commercial,SmartSourcing,300033363,16380.00,Outside IR35 Non Perm Resource,SME,788507869
BEIS,The Insolvency Service,08/11/2021,Staff Costs - Non-Perms,Finance & Commercial,SmartSourcing,300033372,19584.00,Outside IR35 Non Perm Resource,SME,788507869
BEIS,The Insolvency Service,08/11/2021,Staff Costs - Non-Perms,Finance & Commercial,SmartSourcing,300033374,10008.00,Outside IR35 Non Perm Resource,SME,788507869
BEIS,The Insolvency Service,08/11/2021,Staff Costs - Non-Perms,Finance & Commercial,SmartSourcing,300033379,17820.00,Outside IR35 Non Perm Resource,SME,788507869
BEIS,The Insolvency Service,08/11/2021,Staff Costs - Non-Perms,Finance & Commercial,SmartSourcing,300033384,10560.00,Outside IR35 Non Perm Resource,SME,788507869
BEIS,The Insolvency Service,08/11/2021,Staff Costs - Non-Perms,Finance & Commercial,SmartSourcing,300033385,15246.00,Outside IR35 Non Perm Resource,SME,788507869
BEIS,The Insolvency Service,08/11/2021,Staff Costs - Non-Perms,Finance & Commercial,SmartSourcing,300033390,11114.21,Outside IR35 Non Perm Resource,SME,788507869
BEIS,The Insolvency Service,08/11/2021,Staff Costs - Non-Perms,Finance & Commercial,SmartSourcing,300033400,14490.00,Outside IR35 Non Perm Resource,SME,788507869
BEIS,The Insolvency Service,08/11/2021,Staff Costs - Non-Perms,Finance & Commercial,SmartSourcing,300033402,17892.00,Outside IR35 Non Perm Resource,SME,788507869
BEIS,The Insolvency Service,08/11/2021,Staff Costs - Non-Perms,Finance & Commercial,SmartSourcing,300033405,14490.00,Outside IR35 Non Perm Resource,SME,788507869
BEIS,The Insolvency Service,08/11/2021,Staff Costs - Non-Perms,Finance & Commercial,SmartSourcing,300033407,12510.00,Outside IR35 Non Perm Resource,SME,788507869
BEIS,The Insolvency Service,08/11/2021,Legal - Costs of Civil Litigation Disqualifications,Legal Services Division,Mills & Reeve LLP,300033354,5333.83,Costs of Civil Litigation Disqualifications,Large,104834588
BEIS,The Insolvency Service,08/11/2021,Legal - Outsourced Investigation,Investigations & Enforcement Services,Mills & Reeve LLP,300033355,18376.70,Solicitors Investigations,Large,104834588
BEIS,The Insolvency Service,08/11/2021,Estates - Property,Finance & Commercial,Castle Water Limited,300033332,1183.79,Water,Large,319427788
BEIS,The Insolvency Service,08/11/2021,Staff Costs - Non-Perms,Chief Executive Office,April Strategy LLP,300033420,48000.00,Outside IR35 Non Perm Resource,SME,927406420
BEIS,The Insolvency Service,08/11/2021,Other Costs,Official Receiver Services,Controlaccount PLC,300033336,1410.00,Customer Research and Accreditation,SME,945758964
BEIS,The Insolvency Service,08/11/2021,Other Costs,Official Receiver Services,Controlaccount PLC,300033338,5700.00,Customer Research and Accreditation,SME,945758964
BEIS,The Insolvency Service,08/11/2021,Other Costs,Official Receiver Services,Controlaccount PLC,300033340,1044.00,Customer Research and Accreditation,SME,945758964
BEIS,The Insolvency Service,08/11/2021,Other Costs,Official Receiver Services,Controlaccount PLC,300033436,642.00,Customer Research and Accreditation,SME,945758964
BEIS,The Insolvency Service,08/11/2021,Legal - Costs of Civil Litigation Disqualifications,Legal Services Division,9 Stone Buildings,300033431,1280.00,Civil Litigation Disqualifications Counsel Fees,SME,277586642
BEIS,The Insolvency Service,08/11/2021,ICT,Investigations & Enforcement Services,Synalogik Innovative Solutions Limited,300033333,51480.00,IT - Run,,307603622
BEIS,The Insolvency Service,09/11/2021,"Printing, Stationary & Postage",Finance & Commercial,Banner Business Services Ltd,300033170,3502.24,Office supplies,Large,731860439
BEIS,The Insolvency Service,09/11/2021,Estates - Property,Finance & Commercial,Restore Datashred (Data Solutions 2016 Ltd T/A Restore Data),300033160,1719.08,Confidential Waste,Large,240193143
BEIS,The Insolvency Service,09/11/2021,"Printing, Stationary & Postage",Finance & Commercial,City Sprint Uk Ltd,300033215,1458.61,Courier,SME,997327364
BEIS,The Insolvency Service,09/11/2021,Investigation & Enforcement,Investigations & Enforcement Services,Md5 Ltd,300033229,811.03,Case Related Costs,SME,
BEIS,The Insolvency Service,09/11/2021,Investigation & Enforcement,Investigations & Enforcement Services,Datel Computing Limited,300033290,792.79,Case Related Costs,SME,323082982
BEIS,The Insolvency Service,09/11/2021,Legal - Costs of Criminal Prosecutions and Advice,Legal Services Division,5 St Andrews Hill,300033457,1367.76,Costs of Criminal Prosecutions and Advice,SME,703074472
BEIS,The Insolvency Service,09/11/2021,Legal - Costs of Civil Litigation Disqualifications,Legal Services Division,Tlt Llp,300033466,5359.15,Costs of Civil Litigation Disqualifications,Large,3574583240
BEIS,The Insolvency Service,09/11/2021,Legal - Costs of Civil Litigation Disqualifications,Legal Services Division,Tlt Llp,300033467,2854.20,Costs of Civil Litigation Disqualifications,Large,3574583240
BEIS,The Insolvency Service,09/11/2021,ICT,Digital Technology Services,Netcompany UK Ltd,300033219,27763.20,IT - Run,Large,171809009
BEIS,The Insolvency Service,09/11/2021,ICT,Digital Technology Services,Netcompany UK Ltd,300033220,16498.80,IT - Run,Large,171809009
BEIS,The Insolvency Service,09/11/2021,ICT,Digital Technology Services,Netcompany UK Ltd,300033221,2958.00,IT - Run,Large,171809009
BEIS,The Insolvency Service,09/11/2021,ICT,Digital Technology Services,Netcompany UK Ltd,300033222,2336.40,IT - Run,Large,171809009
BEIS,The Insolvency Service,09/11/2021,ICT,Digital Technology Services,Netcompany UK Ltd,300033223,1947.00,IT - Run,Large,171809009
BEIS,The Insolvency Service,09/11/2021,Staff Costs - Non-Perms,Finance & Commercial,SmartSourcing,300033365,13800.00,Outside IR35 Non Perm Resource,SME,788507869
BEIS,The Insolvency Service,09/11/2021,Staff Costs - Non-Perms,Finance & Commercial,SmartSourcing,300033377,15876.00,Outside IR35 Non Perm Resource,SME,788507869
BEIS,The Insolvency Service,09/11/2021,Staff Costs - Non-Perms,Finance & Commercial,SmartSourcing,300033388,17010.00,Outside IR35 Non Perm Resource,SME,788507869
BEIS,The Insolvency Service,09/11/2021,Staff Costs - Non-Perms,Finance & Commercial,SmartSourcing,300033392,8820.00,Outside IR35 Non Perm Resource,SME,788507869
BEIS,The Insolvency Service,09/11/2021,Staff Costs - Non-Perms,Finance & Commercial,SmartSourcing,300033404,13680.00,Outside IR35 Non Perm Resource,SME,788507869
BEIS,The Insolvency Service,09/11/2021,ICT,Official Receiver Services,Advanced 365 Limited,300033169,9975.00,IT - Transform,Large,927547983
BEIS,The Insolvency Service,09/11/2021,Staff Costs - Non-Perms,Finance & Commercial,Spinwell Global Ltd,300033225,3282.00,Agency Staff & Contractor Costs,,257189569
BEIS,The Insolvency Service,10/11/2021,"Printing, Stationary & Postage",Business Service Division,Quadient UK,300032408,8110.60,Postage,Large,
BEIS,The Insolvency Service,10/11/2021,Training,People & Capability,Dods Parlimentary Communications Ltd,300033498,1250.00,Training,SME,792067900
BEIS,The Insolvency Service,10/11/2021,Training,People & Capability,KPMG LLP,300033473,3380.00,Training,Large,791788859
BEIS,The Insolvency Service,10/11/2021,Training,People & Capability,KPMG LLP,300033474,2500.00,Training,Large,791788859
BEIS,The Insolvency Service,10/11/2021,Training,People & Capability,KPMG LLP,300033475,2900.00,Training,Large,791788859
BEIS,The Insolvency Service,10/11/2021,Training,People & Capability,KPMG LLP,300033477,4311.00,Training,Large,791788859
BEIS,The Insolvency Service,10/11/2021,Legal - Costs of Criminal Prosecutions and Advice,Legal Services Division,18 Red Lion Court Chambers,300033478,825.00,Costs of Criminal Prosecutions and Advice,SME,766793665
BEIS,The Insolvency Service,10/11/2021,Legal - Costs of Criminal Prosecutions and Advice,Legal Services Division,18 Red Lion Court Chambers,300033483,588.00,Costs of Criminal Prosecutions and Advice,SME,766793665
BEIS,The Insolvency Service,10/11/2021,Legal - Costs of Criminal Prosecutions and Advice,Legal Services Division,18 Red Lion Court Chambers,300033484,651.00,Costs of Criminal Prosecutions and Advice,SME,766793665
BEIS,The Insolvency Service,11/11/2021,Legal - Costs of Civil Litigation Disqualifications,Legal Services Division,Womble Bond Dickinson,300032510,158093.85,Costs of Civil Litigation Disqualifications,Large,123392627
BEIS,The Insolvency Service,11/11/2021,"Printing, Stationary & Postage",Finance & Commercial,Quadient UK Limited,300033497,8389.08,Postage,Large,
BEIS,The Insolvency Service,11/11/2021,Training,People & Capability,BPP Professional Education,300033523,2450.00,Training,Large,466451629
BEIS,The Insolvency Service,11/11/2021,ICT,Digital Technology Services,Experian Ltd,300033528,2200.74,IT - Run,Large,887133593
BEIS,The Insolvency Service,11/11/2021,ICT,Digital Technology Services,Experian Ltd,300033529,9783.60,IT - Run,Large,887133593
BEIS,The Insolvency Service,11/11/2021,HR,People & Capability,Cabinet Office,300033504,5477.50,Recruitment Costs,Large,888801080
BEIS,The Insolvency Service,11/11/2021,ICT,Digital Technology Services,Ee Ltd (Air Time),300033525,21885.54,Telephones - Charges,Large,771592016
BEIS,The Insolvency Service,11/11/2021,ICT,Digital Technology Services,Ee Ltd (Air Time),300033526,891.60,Telephones - Charges,Large,771592016
BEIS,The Insolvency Service,11/11/2021,Legal - Costs of Criminal Prosecutions and Advice,Legal Services Division,18 Red Lion Court Chambers,300033492,1050.00,Costs of Criminal Prosecutions and Advice,SME,766793665
BEIS,The Insolvency Service,11/11/2021,Legal - Costs of Criminal Prosecutions and Advice,Legal Services Division,Freeman Brown Solicitors,300033539,1077.19,Costs of Criminal Prosecutions and Advice,,
BEIS,The Insolvency Service,11/11/2021,Off-Site Storage,Official Receiver Services,Restore Plc (Records Management),300033460,7556.91,Storage - OR,Large,843863011
BEIS,The Insolvency Service,11/11/2021,Estates - Property,Finance & Commercial,Plymouth City Council (Rent),300033486,20007.50,Rent,Public Sector,
BEIS,The Insolvency Service,11/11/2021,Estates - Property,Finance & Commercial,Plymouth City Council (Rent),300033487,600.00,Rent,Public Sector,
BEIS,The Insolvency Service,11/11/2021,Estates - Property,Finance & Commercial,Plymouth City Council (Rent),300033488,600.00,Rent,Public Sector,
BEIS,The Insolvency Service,11/11/2021,Estates - Property,Finance & Commercial,Plymouth City Council (Rent),300033490,927.60,Rent,Public Sector,
BEIS,The Insolvency Service,11/11/2021,Estates - Property,Finance & Commercial,Plymouth City Council (Rent),300033501,1200.00,Rent,Public Sector,
BEIS,The Insolvency Service,11/11/2021,Estates - Property,Finance & Commercial,Plymouth City Council (Rent),300033502,1200.00,Rent,Public Sector,
BEIS,The Insolvency Service,11/11/2021,Staff Costs - Non-Perms,Finance & Commercial,ALEXANDER MANN SOLUTIONS,300033532,51802.15,Agency Staff & Contractor Costs,Large,7444926120
BEIS,The Insolvency Service,11/11/2021,Off-Site Storage,Official Receiver Services,Oasis UK Ltd,300033334,755.22,Storage - OR,Large,931579211
BEIS,The Insolvency Service,11/11/2021,Legal - Costs of Civil Litigation Disqualifications,Legal Services Division,9 Stone Buildings,300033553,1525.00,Civil Litigation Disqualifications Counsel Fees,SME,168754953
BEIS,The Insolvency Service,11/11/2021,Legal - Costs of Civil Litigation Disqualifications,Legal Services Division,9 Stone Buildings,300033554,750.00,Civil Litigation Disqualifications Counsel Fees,SME,168754953
BEIS,The Insolvency Service,11/11/2021,ICT,Digital Technology Services,Gamma Telecom Limited,300033503,1667.56,Telephones - Charges,Large,823820344
BEIS,The Insolvency Service,11/11/2021,Legal - Costs of Civil Litigation Disqualifications,Legal Services Division,9 Stone Buildings,300033556,1303.10,Civil Litigation Disqualifications Counsel Fees,SME,277586642
BEIS,The Insolvency Service,11/11/2021,"Printing, Stationary & Postage",Finance & Commercial,PSL Print Management Ltd,300033499,4811.41,Printing and Reprographics,Large,448293129
BEIS,The Insolvency Service,12/11/2021,Legal - Costs of Civil Litigation Disqualifications,Legal Services Division,Womble Bond Dickinson,300033413,79227.60,Costs of Civil Litigation Disqualifications,Large,123392627
BEIS,The Insolvency Service,12/11/2021,Estates - Property,Finance & Commercial,E.On,300033533,845.03,Electricity,SME,559097889
BEIS,The Insolvency Service,12/11/2021,Legal - Costs of Civil Litigation Disqualifications,Legal Services Division,Exchange Chambers,300033575,766.33,Civil Litigation Disqualifications Counsel Fees,SME,
BEIS,The Insolvency Service,12/11/2021,Training,People & Capability,KPMG LLP,300033538,2200.00,Training,Large,791788859
BEIS,The Insolvency Service,12/11/2021,Investigation & Enforcement,Investigations & Enforcement Services,Mendip Media Group Ltd (Now Trading As Appen) - (Transcri),300033580,1168.34,Case Related Costs,SME,609546425
BEIS,The Insolvency Service,12/11/2021,Training,Official Receiver Services,Mayvin Limited,300033506,10125.00,Training,SME,103432761
BEIS,The Insolvency Service,12/11/2021,Staff Costs - Non-Perms,Finance & Commercial,SmartSourcing,300033563,10800.00,Outside IR35 Non Perm Resource,SME,788507869
BEIS,The Insolvency Service,12/11/2021,Staff Costs - Non-Perms,Finance & Commercial,SmartSourcing,300033576,13110.00,Outside IR35 Non Perm Resource,SME,788507869
BEIS,The Insolvency Service,12/11/2021,Staff Costs - Non-Perms,Finance & Commercial,SmartSourcing,300033577,14742.00,Outside IR35 Non Perm Resource,SME,788507869
BEIS,The Insolvency Service,12/11/2021,Staff Costs - Non-Perms,Finance & Commercial,SmartSourcing,300033581,21300.00,Outside IR35 Non Perm Resource,SME,788507869
BEIS,The Insolvency Service,12/11/2021,Training,Digital Technology Services,Coeus Consulting LTD,300033561,700.00,Training,SME,156977749
BEIS,The Insolvency Service,15/11/2021,Other Costs,Official Receiver Services,Insolvency Service,300033534,580.00,"Fruitless, ex-Gratia and Compensation Payment",Public Sector,
BEIS,The Insolvency Service,15/11/2021,Legal - Costs of Civil Litigation Disqualifications,Legal Services Division,Womble Bond Dickinson,300033627,12564.02,Costs of Civil Litigation Disqualifications,Large,123392627
BEIS,The Insolvency Service,15/11/2021,Training,People & Capability,KPMG,300033540,1647.60,Training,Large,
BEIS,The Insolvency Service,15/11/2021,Estates - Property,Projects,Avison Young (Non Rent/Legal Advice),300033630,24624.00,Estates Professional Services,SME,
BEIS,The Insolvency Service,15/11/2021,Estates - Property,Finance & Commercial,Avison Young (Non Rent/Legal Advice),300033641,1638.00,Estates Professional Services,SME,
BEIS,The Insolvency Service,15/11/2021,Estates - Property,Finance & Commercial,Cross Stone Estates Limited,300033530,6129.00,Rent,SME,783680883
BEIS,The Insolvency Service,15/11/2021,Staff Costs - Non-Perms,Business Service Division,Randstad Solutions Ltd,300033262,1283.16,Agency Staff & Contractor Costs,Large,492435726
BEIS,The Insolvency Service,15/11/2021,Staff Costs - Non-Perms,Business Service Division,Randstad Solutions Ltd,300033579,1153.12,Agency Staff & Contractor Costs,Large,492435726
BEIS,The Insolvency Service,16/11/2021,"Printing, Stationary & Postage",Business Service Division,Quadient UK,300033651,6027.20,Postage,Large,
BEIS,The Insolvency Service,16/11/2021,Training,Investigations & Enforcement Services,Think Different Events Ltd,300033673,4200.00,Training,,
BEIS,The Insolvency Service,16/11/2021,Staff Costs - Non-Perms,Finance & Commercial,SmartSourcing,300033564,3420.00,Outside IR35 Non Perm Resource,SME,788507869
BEIS,The Insolvency Service,16/11/2021,Staff Costs - Non-Perms,Finance & Commercial,SmartSourcing,300033568,13200.00,Outside IR35 Non Perm Resource,SME,788507869
BEIS,The Insolvency Service,16/11/2021,Staff Costs - Non-Perms,Finance & Commercial,SmartSourcing,300033571,13860.00,Outside IR35 Non Perm Resource,SME,788507869
BEIS,The Insolvency Service,16/11/2021,ICT,Projects,Nomensa Limited,300031698,46591.20,IT - Refresh,Large,771727411
BEIS,The Insolvency Service,17/11/2021,"Printing, Stationary & Postage",Finance & Commercial,Royal Mail (Response Services),300033174,17355.96,Postage,Large,243170002
BEIS,The Insolvency Service,17/11/2021,"Printing, Stationary & Postage",Finance & Commercial,Royal Mail (Response Services),300033174,2376.00,Postage,Large,243170002
BEIS,The Insolvency Service,17/11/2021,ICT,Digital Technology Services,Daisy Corporate Services Trading Limited,300033688,16877.89,IT - Run,Large,722471355
BEIS,The Insolvency Service,17/11/2021,ICT,Projects,Smartcomms Sc Ltd,300033468,13680.00,IT - Refresh,Large,
BEIS,The Insolvency Service,17/11/2021,Legal - Costs of Criminal Prosecutions and Advice,Legal Services Division,Police And Crime Commissioner For Hampshire,300033724,735.00,Costs of Criminal Prosecutions and Advice,Public Sector,
BEIS,The Insolvency Service,17/11/2021,HR,People & Capability,Uksbs Shared Services Centre Ltd,300033690,73416.66,HR & Payroll Costs,Large,888825550
BEIS,The Insolvency Service,17/11/2021,Legal - Costs of Civil Litigation Disqualifications,Legal Services Division,Exchange Chambers,300033710,720.00,Civil Litigation Disqualifications Counsel Fees,SME,
BEIS,The Insolvency Service,17/11/2021,Legal - Costs of Civil Litigation Disqualifications,Legal Services Division,St Philips Barristers,300033742,770.00,Civil Litigation Disqualifications Counsel Fees,SME,614053968
BEIS,The Insolvency Service,17/11/2021,HR,Business Service Division,Cragg Ross Dawson Ltd,300033572,608.40,Recruitment Costs,SME,289382407
BEIS,The Insolvency Service,17/11/2021,Staff Costs - Non-Perms,Finance & Commercial,SmartSourcing,300033701,10350.00,Outside IR35 Non Perm Resource,SME,788507869
BEIS,The Insolvency Service,17/11/2021,Staff Costs - Non-Perms,Finance & Commercial,SmartSourcing,300033715,10440.00,Outside IR35 Non Perm Resource,SME,788507869
BEIS,The Insolvency Service,17/11/2021,Legal - Costs of Civil Litigation Disqualifications,Legal Services Division,Selbourne Chambers,300033711,960.00,Civil Litigation Disqualifications Counsel Fees,SME,1036299146
BEIS,The Insolvency Service,17/11/2021,ICT,Business Service Division,Advanced 365 Limited,300031990,21930.00,IT - Run,Large,927547983
BEIS,The Insolvency Service,17/11/2021,ICT,Projects,Nomensa Limited,300032609,8068.80,IT - Refresh,Large,771727411
BEIS,The Insolvency Service,17/11/2021,ICT,Digital Technology Services,NTT DATA UK LIMITED,300033704,14222.57,IT - Run,Large,159334590
BEIS,The Insolvency Service,17/11/2021,ICT,Digital Technology Services,NTT DATA UK LIMITED,300033706,14222.57,IT - Run,Large,159334590
BEIS,The Insolvency Service,17/11/2021,Legal - Costs of Civil Litigation Disqualifications,Legal Services Division,Enterprise Chambers,300033689,750.00,Civil Litigation Disqualifications Counsel Fees,SME,
BEIS,The Insolvency Service,18/11/2021,Estates - Property,Finance & Commercial,Companies House,300033751,34051.08,Rent,Public Sector,
BEIS,The Insolvency Service,18/11/2021,Estates - Property,Finance & Commercial,Companies House,300033752,700.10,Rent,Public Sector,
BEIS,The Insolvency Service,18/11/2021,HR,People & Capability,Cabinet Office,300033709,21207.00,Recruitment Costs,Large,888801080
BEIS,The Insolvency Service,18/11/2021,Legal - Outsourced Investigation,Investigations & Enforcement Services,Tlt Llp,300033743,28480.00,Solicitors Investigations,Large,3574583240
BEIS,The Insolvency Service,18/11/2021,Staff Costs - Non-Perms,Finance & Commercial,ALEXANDER MANN SOLUTIONS,300033687,60751.62,Agency Staff & Contractor Costs,Large,7444926120
BEIS,The Insolvency Service,18/11/2021,Legal - Costs of Civil Litigation Disqualifications,Legal Services Division,SUNDRY SUPPLIER,300033707,564.00,Civil Litigation Disqualifications Counsel Fees,,
BEIS,The Insolvency Service,18/11/2021,Staff Costs - Non-Perms,Finance & Commercial,SmartSourcing,300033716,13104.00,Outside IR35 Non Perm Resource,SME,788507869
BEIS,The Insolvency Service,18/11/2021,Estates - Property,Official Receiver Services,Arc Business Interiors,300033734,3189.60,Furniture,SME,857128506
BEIS,The Insolvency Service,18/11/2021,ICT,Digital Technology Services,Advanced 365 Limited,300033672,5693.18,IT - Run,Large,927547983
BEIS,The Insolvency Service,18/11/2021,ICT,Digital Technology Services,Equiniti ICS Ltd,300033712,33733.33,IT - Run,SME,
BEIS,The Insolvency Service,19/11/2021,Legal - Costs of Civil Litigation Winding Up,Legal Services Division,Womble Bond Dickinson,300032507,5795.80,Costs of Civil Litigation Winding Up,Large,123392627
BEIS,The Insolvency Service,19/11/2021,Training,Legal Services Division,Exchange Chambers,300033670,525.00,Training,SME,
BEIS,The Insolvency Service,19/11/2021,Legal - Costs of Criminal Prosecutions and Advice,Legal Services Division,Exchange Chambers,300033774,1020.00,Costs of Criminal Prosecutions and Advice,SME,
BEIS,The Insolvency Service,19/11/2021,Legal - Costs of Civil Litigation Disqualifications,Legal Services Division,South Square,300033800,1070.00,Civil Litigation Disqualifications Counsel Fees,SME,843274916
BEIS,The Insolvency Service,19/11/2021,Legal - Costs of Civil Litigation Disqualifications,Legal Services Division,Selbourne Chambers,300033795,1000.00,Civil Litigation Disqualifications Counsel Fees,SME,1036299146
BEIS,The Insolvency Service,19/11/2021,Legal - Costs of Civil Litigation Disqualifications,Legal Services Division,Selbourne Chambers,300033799,1040.00,Civil Litigation Disqualifications Counsel Fees,SME,1036299146
BEIS,The Insolvency Service,19/11/2021,HR,People & Capability,SmartSurvey Ltd,300033771,675.00,HR & Payroll Costs,SME,840574625
BEIS,The Insolvency Service,19/11/2021,Training,People & Capability,Cabinet Office - Internships,300033768,7200.00,Training,,
BEIS,The Insolvency Service,19/11/2021,Staff Costs - Non-Perms,Finance & Commercial,Spinwell Global Ltd,300033573,3282.00,Agency Staff & Contractor Costs,,257189569
BEIS,The Insolvency Service,22/11/2021,Legal - Costs of Criminal Prosecutions and Advice,Legal Services Division,Freeman Brown Solicitors,300033825,1504.96,Costs of Criminal Prosecutions and Advice,,
BEIS,The Insolvency Service,22/11/2021,Staff Costs - Non-Perms,Finance & Commercial,SmartSourcing,300033750,18240.00,Outside IR35 Non Perm Resource,SME,788507869
BEIS,The Insolvency Service,22/11/2021,ICT,Digital Technology Services,Advanced 365 Limited,300033552,720.00,IT - Run,Large,927547983
BEIS,The Insolvency Service,22/11/2021,"Printing, Stationary & Postage",Finance & Commercial,Cabinet Office,300033770,64140.01,Postage,Large,888801080
BEIS,The Insolvency Service,22/11/2021,"Printing, Stationary & Postage",Finance & Commercial,Cabinet Office,300033772,60024.31,Postage,Large,888801080
BEIS,The Insolvency Service,22/11/2021,Staff Costs - Non-Perms,Finance & Commercial,Spinwell Global Ltd,300033769,3282.00,Agency Staff & Contractor Costs,,257189569
BEIS,The Insolvency Service,23/11/2021,Estates - Property,Finance & Commercial,Jones Lang Lasalle (Amas Ltd) - (Rent & Property Costs),300029746,9630.00,Landlord Service Charge,Large,
BEIS,The Insolvency Service,23/11/2021,Other Costs,"Strategy, Policy & Analysis",Shard Financial Media Limited,300033882,5100.00,Conferences & Room Hire,,859067289
BEIS,The Insolvency Service,23/11/2021,ICT,Digital Technology Services,Thales Uk Ltd. (L&J),300030929,28987.00,IT - Transform,Large,198955680
BEIS,The Insolvency Service,23/11/2021,Legal - Costs of Criminal Prosecutions and Advice,Legal Services Division,5 St Andrews Hill,300033881,752.88,Costs of Criminal Prosecutions and Advice,SME,703074472
BEIS,The Insolvency Service,23/11/2021,Legal - Costs of Criminal Prosecutions and Advice,Legal Services Division,18 Red Lion Court Chambers,300033871,13547.00,Costs of Criminal Prosecutions and Advice,SME,766793665
BEIS,The Insolvency Service,23/11/2021,Legal - Costs of Criminal Prosecutions and Advice,Legal Services Division,18 Red Lion Court Chambers,300033895,543.00,Costs of Criminal Prosecutions and Advice,SME,766793665
BEIS,The Insolvency Service,23/11/2021,Legal - Costs of Criminal Prosecutions and Advice,Legal Services Division,St Philips Barristers,300033868,6118.00,Costs of Criminal Prosecutions and Advice,SME,614053968
BEIS,The Insolvency Service,23/11/2021,ICT,Business Service Division,Nomensa Limited,300033861,33600.00,IT - Run,Large,771727411
BEIS,The Insolvency Service,23/11/2021,Staff Costs - Non-Perms,Finance & Commercial,Robertson Bell Ltd,300033702,2934.12,Agency Staff & Contractor Costs,SME,913325843
BEIS,The Insolvency Service,23/11/2021,Staff Costs - Non-Perms,Finance & Commercial,Robertson Bell Ltd,300033703,2934.12,Agency Staff & Contractor Costs,SME,913325843
BEIS,The Insolvency Service,23/11/2021,Staff Costs - Non-Perms,Finance & Commercial,Robertson Bell Ltd,300033730,2934.12,Agency Staff & Contractor Costs,SME,913325843
BEIS,The Insolvency Service,23/11/2021,ICT,Digital Technology Services,Phoenix Software Limited,300033720,2808.50,IT - Run,SME,755349015
BEIS,The Insolvency Service,24/11/2021,Estates - Property,Finance & Commercial,Jones Lang Lasalle (Amas Ltd) - (Rent & Property Costs),300033700,218357.89,Rent,Large,
BEIS,The Insolvency Service,24/11/2021,Legal - Costs of Criminal Prosecutions and Advice,Legal Services Division,23 Essex Street,300033967,32125.00,Costs of Criminal Prosecutions and Advice,,524199244
BEIS,The Insolvency Service,24/11/2021,ICT,Digital Technology Services,Thales Uk Ltd. (L&J),300033846,105320.60,IT - Run,Large,198955680
BEIS,The Insolvency Service,24/11/2021,Legal - Costs of Civil Litigation Disqualifications,Legal Services Division,Radcliffe Chambers,300033963,18420.00,Civil Litigation Disqualifications Counsel Fees,SME,182831693
BEIS,The Insolvency Service,25/11/2021,Training,Chief Executive Office,KPMG,300033975,1394.00,Training,Large,
BEIS,The Insolvency Service,25/11/2021,Training,Chief Executive Office,KPMG,300033978,1394.00,Training,Large,
BEIS,The Insolvency Service,25/11/2021,Training,Chief Executive Office,KPMG,300033979,1394.00,Training,Large,
BEIS,The Insolvency Service,25/11/2021,Training,Chief Executive Office,KPMG,300033995,1394.00,Training,Large,
BEIS,The Insolvency Service,25/11/2021,Training,Chief Executive Office,KPMG,300033996,1394.00,Training,Large,
BEIS,The Insolvency Service,25/11/2021,ICT,Digital Technology Services,Daisy Corporate Services Trading Limited,300033964,13200.00,IT - Run,Large,722471355
BEIS,The Insolvency Service,25/11/2021,Legal - Costs of Criminal Prosecutions and Advice,Legal Services Division,Freeman Brown Solicitors,300033960,4047.52,Costs of Criminal Prosecutions and Advice,,
BEIS,The Insolvency Service,25/11/2021,Training,Legal Services Division,SUNDRY SUPPLIER,300033957,600.00,Training,,
BEIS,The Insolvency Service,25/11/2021,Staff Costs - Non-Perms,Projects,Red Snapper Recruitment,300034003,4050.00,Outside IR35 Non Perm Resource,SME,835435718
BEIS,The Insolvency Service,25/11/2021,Staff Costs - Non-Perms,Projects,Red Snapper Recruitment,300034006,4050.00,Outside IR35 Non Perm Resource,SME,835435718
BEIS,The Insolvency Service,25/11/2021,Staff Costs - Non-Perms,Projects,Red Snapper Recruitment,300034009,4050.00,Outside IR35 Non Perm Resource,SME,835435718
BEIS,The Insolvency Service,26/11/2021,Training,Chief Executive Office,KPMG,300034005,1394.00,Training,Large,
BEIS,The Insolvency Service,26/11/2021,Training,Chief Executive Office,KPMG,300034007,1394.00,Training,Large,
BEIS,The Insolvency Service,26/11/2021,Training,Chief Executive Office,KPMG,300034011,1394.00,Training,Large,
BEIS,The Insolvency Service,26/11/2021,Other Costs,Finance & Commercial,Government Internal Audit Agency,300034014,36900.00,Audit Costs,SME,
BEIS,The Insolvency Service,26/11/2021,Other Costs,Finance & Commercial,Government Internal Audit Agency,300034015,36900.00,Audit Costs,SME,
BEIS,The Insolvency Service,26/11/2021,HR,Investigations & Enforcement Services/Legal Services Division,Warwickshire Police & Crime Commissioner,300034037,1210.00,Recruitment Costs,Public Sector,
BEIS,The Insolvency Service,26/11/2021,Training,People & Capability,KPMG LLP,300033974,2920.00,Training,Large,791788859
BEIS,The Insolvency Service,26/11/2021,Off-Site Storage,Official Receiver Services,Oasis UK Ltd,300034016,755.22,Storage - OR,Large,931579211
BEIS,The Insolvency Service,26/11/2021,Staff Costs - Non-Perms,Finance & Commercial,SmartSourcing,300033970,12418.56,Outside IR35 Non Perm Resource,SME,788507869
BEIS,The Insolvency Service,26/11/2021,Investigation & Enforcement,Investigations & Enforcement Services,Deloitte LLP,300033997,4494.00,Case Related Costs,Large,809707706
BEIS,The Insolvency Service,26/11/2021,Staff Costs - Non-Perms,Finance & Commercial,Spinwell Global Ltd,300033569,3282.00,Agency Staff & Contractor Costs,,257189569
BEIS,The Insolvency Service,26/11/2021,Staff Costs - Non-Perms,Finance & Commercial,Spinwell Global Ltd,300033781,5907.60,Agency Staff & Contractor Costs,,257189569
BEIS,The Insolvency Service,26/11/2021,Staff Costs - Non-Perms,Projects,L.A. International Computer Consultants Limited,300034022,18014.40,Outside IR35 Non Perm Resource,,844273325
BEIS,The Insolvency Service,29/11/2021,Off-Site Storage,Finance & Commercial,Iron Mountain (Uk) Ltd,300034033,36330.39,Storage - OR,Large,607937516
BEIS,The Insolvency Service,29/11/2021,"Printing, Stationary & Postage",Finance & Commercial,Quadient UK,300033972,804.59,Office machinery - Maintenance,Large,
BEIS,The Insolvency Service,29/11/2021,HR,Investigations & Enforcement Services/Legal Services Division,Warwickshire Police & Crime Commissioner,300034035,968.00,Recruitment Costs,Public Sector,
BEIS,The Insolvency Service,29/11/2021,HR,Investigations & Enforcement Services/Legal Services Division,Warwickshire Police & Crime Commissioner,300034043,1815.00,Recruitment Costs,Public Sector,
BEIS,The Insolvency Service,29/11/2021,HR,Investigations & Enforcement Services/Legal Services Division,Warwickshire Police & Crime Commissioner,300034044,1573.00,Recruitment Costs,Public Sector,
BEIS,The Insolvency Service,29/11/2021,HR,Investigations & Enforcement Services/Legal Services Division,Warwickshire Police & Crime Commissioner,300034047,605.00,Recruitment Costs,Public Sector,
BEIS,The Insolvency Service,29/11/2021,Investigation & Enforcement,Investigations & Enforcement Services,Mendip Media Group Ltd (Now Trading As Appen) - (Transcri),300033893,810.82,Case Related Costs,SME,609546425
BEIS,The Insolvency Service,29/11/2021,Staff Costs - Non-Perms,Finance & Commercial,ALEXANDER MANN SOLUTIONS,300033977,66138.32,Agency Staff & Contractor Costs,Large,7444926120
BEIS,The Insolvency Service,29/11/2021,Staff Costs - Non-Perms,Projects,Red Snapper Recruitment,300033999,3300.00,Outside IR35 Non Perm Resource,SME,835435718
BEIS,The Insolvency Service,29/11/2021,Staff Costs - Non-Perms,Projects,Red Snapper Recruitment,300034000,3300.00,Outside IR35 Non Perm Resource,SME,835435718
BEIS,The Insolvency Service,29/11/2021,Staff Costs - Non-Perms,Projects,Red Snapper Recruitment,300034004,3300.00,Outside IR35 Non Perm Resource,SME,835435718
BEIS,The Insolvency Service,29/11/2021,Staff Costs - Non-Perms,Projects,Red Snapper Recruitment,300034012,3300.00,Outside IR35 Non Perm Resource,SME,835435718
BEIS,The Insolvency Service,29/11/2021,Staff Costs - Non-Perms,Finance & Commercial,ALEXANDER MANN SOLUTIONS,300033976,-3158.80,Agency Staff & Contractor Costs,Large,7444926120
BEIS,The Insolvency Service,30/11/2021,ICT,Digital Technology Services,Ricoh Uk Limited,300034030,4194.28,IT - Run,Large,
BEIS,The Insolvency Service,30/11/2021,ICT,Projects,Phoenix Software Limited,300034008,1392.36,IT - Run,SME,755349015
BEIS,The Insolvency Service,01/12/2021,ICT,Business Service Division,Hmrc,300034063,1420.39,IT - Run,Public Sector,
BEIS,The Insolvency Service,01/12/2021,Training,People & Capability,BPP Professional Education,300034067,2450.00,Training,Large,466451629
BEIS,The Insolvency Service,01/12/2021,Legal - Costs of Criminal Prosecutions and Advice,Legal Services Division,5 Paper Buildings Chambers,300034136,636.00,Costs of Criminal Prosecutions and Advice,SME,677825187
BEIS,The Insolvency Service,01/12/2021,Legal - Costs of Criminal Prosecutions and Advice,Legal Services Division,Lincoln House Chambers,300034106,540.00,Costs of Criminal Prosecutions and Advice,,876676360
BEIS,The Insolvency Service,01/12/2021,Legal - Costs of Criminal Prosecutions and Advice,Legal Services Division,Lincoln House Chambers,300034127,564.00,Costs of Criminal Prosecutions and Advice,,876676360
BEIS,The Insolvency Service,01/12/2021,Staff Costs - Non-Perms,Finance & Commercial,SmartSourcing,300034112,12312.00,Outside IR35 Non Perm Resource,SME,788507869
BEIS,The Insolvency Service,01/12/2021,Staff Costs - Non-Perms,Finance & Commercial,SmartSourcing,300034113,12540.00,Outside IR35 Non Perm Resource,SME,788507869
BEIS,The Insolvency Service,01/12/2021,Staff Costs - Non-Perms,Finance & Commercial,SmartSourcing,300034114,6930.00,Outside IR35 Non Perm Resource,SME,788507869
BEIS,The Insolvency Service,01/12/2021,Legal - Costs of Civil Litigation Disqualifications,Legal Services Division,South Square,300034069,650.00,Civil Litigation Disqualifications Counsel Fees,SME,843274916
BEIS,The Insolvency Service,01/12/2021,Staff Costs - Non-Perms,Finance & Commercial,Robertson Bell Ltd,300033994,2934.12,Agency Staff & Contractor Costs,SME,913325843
BEIS,The Insolvency Service,01/12/2021,Legal - Costs of Civil Litigation Disqualifications,Legal Services Division,Kings Chambers Limited,300034131,2090.00,Civil Litigation Disqualifications Counsel Fees,,
BEIS,The Insolvency Service,01/12/2021,Legal - Costs of Criminal Prosecutions and Advice,Legal Services Division,Dere Street Barristers,300034125,720.00,Costs of Criminal Prosecutions and Advice,,288688520
BEIS,The Insolvency Service,01/12/2021,ICT,Digital Technology Services,Phoenix Software Limited,300034115,63375.33,IT - Run,SME,755349015
BEIS,The Insolvency Service,01/12/2021,ICT,Digital Technology Services,Phoenix Software Limited,300034118,2487.16,IT - Run,SME,755349015
BEIS,The Insolvency Service,07/12/2021,Estates - Property,Finance & Commercial,Cbre Limited,300033758,754.49,Rent,Large,
